bitfinex/quotes_BTCUSD_20250619
["timestamp","ask_amount","ask_price","bid_price","bid_amount"]
[1750313511427,0.6885017,104870.0,104860.0,0.08557762]
[1750313511626,0.6885017,104870.0,104860.0,0.09511405]
[1750313511869,0.6885017,104870.0,104860.0,0.28584454]
[1750313512284,0.6885017,104870.0,104860.0,0.29538088]
[1750313512496,0.71049211,104870.0,104860.0,0.30491704]
[1750313512751,0.71715497,104870.0,104860.0,0.29538088]
[1750313512963,0.70761954,104870.0,104860.0,0.27630811]
[1750313513176,0.76447939,104870.0,104860.0,0.27630811]
[1750313513835,0.70761954,104870.0,104860.0,0.27630811]
[1750313514058,0.70761948,104870.0,104860.0,0.28584454]
[1750313514276,0.70761948,104870.0,104860.0,0.29538088]
[1750313515213,0.70761948,104870.0,104860.0,0.28584454]
[1750313515332,0.70761948,104870.0,104860.0,0.29538079]
[1750313515753,0.55269948,104870.0,104860.0,0.29538079]
[1750313515947,0.70757946,104870.0,104860.0,0.29538079]
[1750313516149,0.55269946,104870.0,104860.0,0.29538079]
[1750313516376,0.70757946,104870.0,104860.0,0.29538079]
[1750313516793,0.7075795,104870.0,104860.0,0.29538079]
[1750313516996,0.33633818,104870.0,104860.0,0.35429283]
[1750313517194,0.02264066,104870.0,104860.0,0.35429283]
[1750313517440,0.41013729,104880.0,104870.0,0.21931805]
[1750313517651,0.41013729,104880.0,104870.0,0.27691805]
[1750313517894,0.35906794,104880.0,104870.0,0.27691805]
[1750313518101,0.4102358,104880.0,104870.0,0.27691805]
[1750313518278,0.38180921,104880.0,104870.0,0.27691805]
[1750313518693,0.36374127,104880.0,104870.0,0.27691805]
[1750313518895,0.37327515,104880.0,104870.0,0.27691805]
[1750313519107,0.36374127,104880.0,104870.0,0.43183805]
[1750313519739,0.36374127,104880.0,104870.0,0.52807981]
[1750313520387,0.02374127,104880.0,104870.0,0.52807981]
[1750313520594,0.001,104880.0,104870.0,0.52807981]
[1750313521606,0.001,104880.0,104870.0,0.81957981]
[1750313525037,0.35906268,104910.0,104900.0,0.27945532]
[1750313525274,0.39127944,104910.0,104900.0,0.27945532]
[1750313525510,0.39127935,104910.0,104900.0,0.27945532]
[1750313525762,0.38174774,104910.0,104900.0,0.27945532]
[1750313525998,0.39127935,104910.0,104900.0,0.27945532]
[1750313526228,0.38174774,104910.0,104900.0,0.27945532]
[1750313526473,0.3722164,104910.0,104900.0,0.27945532]
[1750313526695,0.34,104910.0,104900.0,0.27945532]
[1750313526905,0.34953125,104910.0,104900.0,0.27945532]
[1750313527734,0.3685942,104910.0,104900.0,0.27945532]
[1750313528162,0.001,104910.0,104900.0,0.24755532]
[1750313528359,0.001,104910.0,104900.0,0.27835532]
[1750313528558,0.04171784,104920.0,104910.0,0.27833442]
[1750313528767,0.01906167,104920.0,104910.0,0.27833442]
[1750313529013,0.02859265,104920.0,104910.0,0.27833442]
[1750313529139,0.22874514,104920.0,104910.0,0.26880308]
[1750313529341,0.02859265,104920.0,104910.0,0.2768546]
[1750313529537,0.02859265,104920.0,104910.0,0.28638594]
[1750313529745,0.02406158,104920.0,104910.0,0.2959171]
[1750313530150,0.04312317,104920.0,104910.0,0.2768546]
[1750313530730,0.38312317,104920.0,104910.0,0.29591737]
[1750313532535,0.3735921,104920.0,104910.0,0.29591737]
[1750313535709,0.345,104920.0,104910.0,0.49059737]
[1750313535919,0.005,104920.0,104910.0,0.49059737]
[1750313536337,0.01453034,104920.0,104910.0,0.49059737]
[1750313536541,0.003,104920.0,104910.0,0.49059737]
[1750313536766,0.41148352,104930.0,104920.0,0.2787138]
[1750313536977,0.59255725,104930.0,104920.0,0.2001523]
[1750313537363,0.59255725,104930.0,104920.0,0.20968309]
[1750313538223,0.58302755,104930.0,104920.0,0.19062142]
[1750313538449,0.58302755,104930.0,104920.0,0.2001524]
[1750313538897,0.58302755,104930.0,104920.0,0.20968328]
[1750313539561,0.58302755,104930.0,104920.0,0.21921407]
[1750313541287,0.58302755,104930.0,104920.0,0.20968328]
[1750313541490,0.60565388,104930.0,104920.0,0.20968328]
[1750313541892,0.59612399,104930.0,104920.0,0.20968328]
[1750313543281,0.58659383,104930.0,104920.0,0.19062142]
[1750313543662,0.58659383,104930.0,104920.0,0.20015249]
[1750313543861,0.58659383,104930.0,104920.0,0.00953107]
[1750313544066,0.00953088,104920.0,104910.0,0.46240209]
[1750313544289,0.20968309,104920.0,104910.0,0.0595]
[1750313544487,0.24185794,104920.0,104910.0,0.20017156]
[1750313544686,0.39665794,104920.0,104910.0,0.20017156]
[1750313544904,0.38712715,104920.0,104910.0,0.20017156]
[1750313545106,0.35906349,104910.0,104900.0,0.62022453]
[1750313545970,0.00953179,104910.0,104900.0,0.58038453]
[1750313546170,0.00953179,104910.0,104900.0,0.77502453]
[1750313546373,0.00953179,104910.0,104900.0,0.48352453]
[1750313546659,0.01906349,104910.0,104900.0,0.48352453]
[1750313547099,0.01906349,104910.0,104900.0,0.48452453]
[1750313547527,0.02859501,104910.0,104900.0,0.48452453]
[1750313547758,0.2192346,104910.0,104900.0,0.47499246]
[1750313547930,0.2192346,104910.0,104900.0,0.47699246]
[1750313548272,0.24192071,104910.0,104900.0,0.28235246]
[1750313548483,0.24192071,104910.0,104900.0,0.47699246]
[1750313548691,0.24192164,104910.0,104900.0,0.47699246]
[1750313549271,0.24193038,104910.0,104900.0,0.47699246]
[1750313549676,0.24193038,104910.0,104900.0,0.28235264]
[1750313549821,0.24193038,104910.0,104900.0,0.48652516]
[1750313550566,0.58193038,104910.0,104900.0,0.49605759]
[1750313551976,0.39129079,104910.0,104900.0,0.49605696]
[1750313552182,0.41035464,104910.0,104900.0,0.49605696]
[1750313552379,0.40082267,104910.0,104900.0,0.49605696]
[1750313552874,0.60099423,104910.0,104900.0,0.49605696]
[1750313553073,0.38175927,104910.0,104900.0,0.48652471]
[1750313553278,0.38175891,104910.0,104900.0,0.49605696]
[1750313553873,0.38175837,104910.0,104900.0,0.49605696]
[1750313554078,0.39128998,104910.0,104900.0,0.49605696]
[1750313555932,0.39128989,104910.0,104900.0,0.49605696]
[1750313556146,0.38175828,104910.0,104900.0,0.49605696]
[1750313558566,0.3912898,104910.0,104900.0,0.49605696]
[1750313559729,0.4008215,104910.0,104900.0,0.46675696]
[1750313559913,0.41035329,104910.0,104900.0,0.43595696]
[1750313560546,0.41035401,104910.0,104900.0,0.4954566]
[1750313560696,0.60099423,104910.0,104900.0,0.47639201]
[1750313560919,0.40082267,104910.0,104900.0,0.48592435]
[1750313561123,0.40082267,104910.0,104900.0,0.4954566]
[1750313561306,0.37812689,104910.0,104900.0,0.4954566]
[1750313561850,0.38765886,104910.0,104900.0,0.4954566]
[1750313562267,0.41038831,104910.0,104900.0,0.48592435]
[1750313562474,0.41038816,104910.0,104900.0,0.48592435]
[1750313562674,0.59149623,104910.0,104900.0,0.48592435]
[1750313562900,0.58196453,104910.0,104900.0,0.47639201]
[1750313563095,0.56290086,104910.0,104900.0,0.003]
[1750313563302,0.59260086,104910.0,104900.0,0.21272334]
[1750313563523,0.56033959,104910.0,104900.0,0.01253288]
[1750313563736,0.56033959,104910.0,104900.0,0.003]
[1750313564700,0.56033959,104910.0,104900.0,0.01253288]
[1750313565119,0.56033959,104910.0,104900.0,0.21272343]
[1750313567032,0.53063959,104910.0,104900.0,0.22225613]
[1750313567210,0.53063959,104910.0,104900.0,0.23178874]
[1750313567453,0.53063959,104910.0,104900.0,0.24132126]
[1750313569359,0.54017147,104910.0,104900.0,0.24132081]
[1750313570221,0.35906349,104910.0,104900.0,0.24132027]
[1750313571203,0.36859546,104910.0,104900.0,0.24132027]
[1750313571644,0.35906349,104910.0,104900.0,0.24132027]
[1750313573222,0.34953134,104910.0,104900.0,0.24132027]
[1750313573452,0.36859447,104910.0,104900.0,0.30372027]
[1750313573913,0.37812626,104910.0,104900.0,0.30372027]
[1750313576278,0.36859447,104910.0,104900.0,0.30372027]
[1750313577351,0.37812626,104910.0,104900.0,0.30372027]
[1750313578370,0.36859438,104910.0,104900.0,0.30372027]
[1750313578679,0.37812617,104910.0,104900.0,0.30372027]
[1750313578890,0.36859438,104910.0,104900.0,0.30372027]
[1750313581138,0.35906277,104910.0,104900.0,0.30372027]
[1750313581387,0.36859429,104910.0,104900.0,0.30372027]
[1750313581590,0.35906277,104910.0,104900.0,0.30372027]
[1750313581795,0.34,104910.0,104900.0,0.30372027]
[1750313581996,0.34953134,104910.0,104900.0,0.30372027]
[1750313582430,0.34,104910.0,104900.0,0.30372027]
[1750313582626,0.35906277,104910.0,104900.0,0.30372027]
[1750313582835,0.34953134,104910.0,104900.0,0.30372027]
[1750313583047,0.35906295,104910.0,104900.0,0.30372027]
[1750313583533,0.35906286,104910.0,104900.0,0.30372027]
[1750313583747,0.36859456,104910.0,104900.0,0.30372027]
[1750313584526,0.37812635,104910.0,104900.0,0.30372027]
[1750313586744,0.57829782,104910.0,104900.0,0.29418802]
[1750313586948,0.56876648,104910.0,104900.0,0.29418802]
[1750313587819,0.56876648,104910.0,104900.0,0.30372036]
[1750313587984,0.37812689,104910.0,104900.0,0.30372036]
[1750313588328,0.37812689,104910.0,104900.0,0.30371991]
[1750313589059,0.38765886,104910.0,104900.0,0.30371991]
[1750313589779,0.56876693,104910.0,104900.0,0.29418766]
[1750313589986,0.55923523,104910.0,104900.0,0.28465532]
[1750313590592,0.55923523,104910.0,104900.0,0.27512289]
[1750313591985,0.54970344,104910.0,104900.0,0.27512289]
[1750313593022,0.54970344,104910.0,104900.0,0.27512325]
[1750313593206,0.54970344,104910.0,104900.0,0.21272325]
[1750313593207,0.54017156,104910.0,104900.0,0.21272325]
[1750313594064,0.54017156,104910.0,104900.0,0.24482325]
[1750313594268,0.54017156,104910.0,104900.0,0.28565577]
[1750313594469,0.54017156,104910.0,104900.0,0.2951882]
[1750313594678,0.56997156,104910.0,104900.0,0.003]
[1750313596405,0.54017156,104910.0,104900.0,0.003]
[1750313597066,0.20017156,104910.0,104900.0,0.003]
[1750313597204,0.26187156,104910.0,104900.0,0.003]
[1750313598050,0.22880947,104890.0,104880.0,0.69036127]
[1750313598268,0.22880947,104890.0,104880.0,0.39886127]
[1750313598699,0.2192765,104890.0,104880.0,0.68082693]
[1750313598926,0.20974325,104890.0,104880.0,0.68082693]
[1750313599153,0.20020973,104890.0,104880.0,0.59463836]
[1750313599420,0.20020973,104890.0,104880.0,0.59563836]
[1750313599625,0.20020973,104890.0,104880.0,0.59763836]
[1750313600091,0.20020973,104890.0,104880.0,0.60717288]
[1750313600318,0.20020973,104890.0,104880.0,0.61670731]
[1750313600743,0.56816181,104890.0,104880.0,0.61670731]
[1750313601684,0.56816181,104890.0,104880.0,0.60717288]
[1750313602311,0.56816181,104890.0,104880.0,0.61670731]
[1750313602732,0.56816181,104890.0,104880.0,0.33474165]
[1750313602958,0.38701939,104890.0,104880.0,0.34427571]
[1750313603589,0.5872284,104890.0,104880.0,0.29490165]
[1750313603801,0.5872284,104890.0,104880.0,0.4990359]
[1750313605650,0.57769515,104890.0,104880.0,0.47043288]
[1750313605875,0.34735166,104890.0,104880.0,0.003]
[1750313606089,0.50329938,104890.0,104880.0,0.003]
[1750313606301,0.47309342,104890.0,104880.0,0.003]
[1750313606514,0.50174442,104890.0,104880.0,0.003]
[1750313607572,0.50174442,104890.0,104880.0,0.002]
[1750313607795,0.84174442,104890.0,104880.0,0.002]
[1750313608448,0.74943154,104890.0,104880.0,0.002]
[1750313608869,0.2097829,104870.0,104860.0,0.12707762]
[1750313609319,0.2097829,104870.0,104860.0,0.32734445]
[1750313609744,0.2097829,104870.0,104860.0,0.3368807]
[1750313610166,0.23873559,104870.0,104860.0,0.3398807]
[1750313610403,0.23873559,104870.0,104860.0,0.34941686]
[1750313610626,0.22920043,104870.0,104860.0,0.0585411]
[1750313611100,0.22920043,104870.0,104860.0,0.0187411]
[1750313611329,0.22920043,104870.0,104860.0,0.0605411]
[1750313611554,0.25785443,104870.0,104860.0,0.0605411]
[1750313613409,0.05760669,104870.0,104860.0,0.0605411]
[1750313613636,0.25785443,104870.0,104860.0,0.0605411]
[1750313615084,0.06714212,104870.0,104860.0,0.31207159]
[1750313615314,0.09574741,104870.0,104860.0,0.35021621]
[1750313615794,0.06709341,104870.0,104860.0,0.35021621]
[1750313616036,0.02895269,104870.0,104860.0,0.35021621]
[1750313616278,0.2869177,104890.0,104870.0,0.25984728]
[1750313616279,0.01906722,104890.0,104870.0,0.25984728]
[1750313616516,0.02860047,104890.0,104880.0,0.26936307]
[1750313616749,0.37813426,104890.0,104880.0,0.31869732]
[1750313616998,0.5688102,104890.0,104880.0,0.30916307]
[1750313617235,0.5688102,104890.0,104880.0,0.31869732]
[1750313618047,0.55927695,104890.0,104880.0,0.31869732]
[1750313618805,0.56087594,104890.0,104870.0,0.32031832]
[1750313618990,0.20976298,104880.0,104870.0,0.31078326]
[1750313619273,0.21929741,104880.0,104870.0,0.32031842]
[1750313619508,0.21929741,104880.0,104870.0,0.26144792]
[1750313619724,0.20976325,104880.0,104870.0,0.31078335]
[1750313619956,0.20022882,104880.0,104870.0,0.24958335]
[1750313620430,0.73415601,104890.0,104870.0,0.24104792]
[1750313620678,0.19069412,104880.0,104870.0,0.05133561]
[1750313620911,0.19069412,104880.0,104870.0,0.002]
[1750313621406,0.19069412,104880.0,104870.0,0.001]
[1750313622113,0.25159412,104880.0,104870.0,0.001]
[1750313622344,0.22129412,104880.0,104870.0,0.001]
[1750313622794,0.19069412,104880.0,104870.0,0.001]
[1750313623303,0.34713588,104880.0,104870.0,0.001]
[1750313623519,0.36982284,104880.0,104870.0,0.002]
[1750313623776,0.43586734,104880.0,104870.0,0.002]
[1750313624007,0.26998308,104870.0,104860.0,0.0137411]
[1750313624198,0.5436718,104870.0,104860.0,0.0137411]
[1750313625646,0.5466718,104870.0,104860.0,0.0137411]
[1750313626561,0.5753278,104870.0,104860.0,0.0137411]
[1750313626769,0.5773278,104870.0,104860.0,0.0137411]
[1750313627004,0.67347702,104870.0,104860.0,0.0137411]
[1750313629405,0.01907386,104850.0,104840.0,0.30032105]
[1750313629832,0.01907386,104850.0,104840.0,0.30985884]
[1750313630316,0.04325463,104850.0,104840.0,0.30985884]
[1750313630777,0.01907376,104850.0,104840.0,0.31085884]
[1750313631205,0.00953661,104850.0,104840.0,0.31085884]
[1750313631421,0.0190734,104850.0,104840.0,0.31085884]
[1750313632065,0.00953661,104850.0,104840.0,0.31085884]
[1750313632286,0.0190734,104850.0,104840.0,0.27105884]
[1750313632503,0.0190734,104850.0,104840.0,0.31089884]
[1750313632941,0.00953661,104850.0,104840.0,0.31089884]
[1750313633158,0.0190734,104850.0,104840.0,0.31089884]
[1750313634093,0.04366116,104850.0,104840.0,0.31089884]
[1750313634304,0.00953661,104850.0,104840.0,0.31089884]
[1750313634529,0.01907331,104850.0,104840.0,0.31089884]
[1750313635197,0.0286101,104850.0,104840.0,0.31089884]
[1750313635626,0.01907331,104850.0,104840.0,0.31089884]
[1750313636078,0.00953661,104850.0,104840.0,0.31089884]
[1750313636817,0.0190734,104850.0,104840.0,0.31089884]
[1750313637139,0.00953661,104850.0,104840.0,0.31089884]
[1750313637974,0.0190734,104850.0,104840.0,0.31089884]
[1750313638941,0.0432886,104850.0,104840.0,0.31089884]
[1750313639152,0.03375181,104850.0,104840.0,0.31089884]
[1750313639569,0.0432886,104850.0,104840.0,0.31089884]
[1750313640276,0.04328851,104850.0,104840.0,0.31089884]
[1750313640526,0.05282539,104850.0,104840.0,0.31089884]
[1750313640742,0.0528253,104850.0,104840.0,0.31089884]
[1750313641614,0.06236227,104850.0,104840.0,0.31089884]
[1750313642088,0.06236218,104850.0,104840.0,0.31089884]
[1750313643067,0.07189925,104850.0,104840.0,0.31089884]
[1750313643302,0.06236218,104850.0,104840.0,0.31089884]
[1750313643850,0.07189925,104850.0,104840.0,0.31089884]
[1750313644291,0.06236218,104850.0,104840.0,0.31089884]
[1750313644516,0.04328851,104850.0,104840.0,0.31089884]
[1750313644980,0.03375181,104850.0,104840.0,0.31089884]
[1750313646172,0.0242152,104850.0,104840.0,0.31089884]
[1750313646631,0.56521666,104860.0,104850.0,0.21935988]
[1750313646857,0.41041666,104860.0,104850.0,0.21935988]
[1750313647300,0.56517666,104860.0,104850.0,0.21935988]
[1750313648954,0.56717666,104860.0,104850.0,0.21935988]
[1750313649179,0.57671309,104860.0,104850.0,0.21935988]
[1750313649874,0.42195309,104860.0,104850.0,0.21935988]
[1750313650107,0.56717666,104860.0,104850.0,0.21935988]
[1750313650329,0.42195208,104860.0,104850.0,0.28105988]
[1750313650559,0.44642228,104860.0,104850.0,0.28105988]
[1750313651198,0.46549469,104860.0,104850.0,0.28105988]
[1750313651426,0.45595844,104860.0,104850.0,0.28105988]
[1750313652548,0.46549478,104860.0,104850.0,0.28105988]
[1750313652767,0.45595844,104860.0,104850.0,0.28105988]
[1750313653492,0.46549478,104860.0,104850.0,0.28105988]
[1750313657104,0.46549551,104860.0,104850.0,0.21935988]
[1750313657318,0.64669003,104860.0,104850.0,0.21936006]
[1750313657738,0.64669003,104860.0,104850.0,0.22889694]
[1750313657951,0.63715396,104860.0,104850.0,0.20982327]
[1750313658169,0.00953688,104850.0,104840.0,0.31259966]
[1750313658419,0.36861147,104850.0,104840.0,0.32209764]
[1750313658655,0.60112299,104850.0,104840.0,0.24002187]
[1750313658879,0.59158611,104850.0,104840.0,0.2590981]
[1750313659363,0.59158611,104850.0,104840.0,0.26863598]
[1750313659644,0.59158611,104850.0,104840.0,0.28017377]
[1750313660076,0.3913,104850.0,104840.0,0.34567313]
[1750313660534,0.38176266,104850.0,104840.0,0.34567313]
[1750313662184,0.419958,104850.0,104840.0,0.34567313]
[1750313663840,0.41042066,104850.0,104840.0,0.34567313]
[1750313665155,0.38176266,104850.0,104840.0,0.34567313]
[1750313665916,0.38176229,104850.0,104840.0,0.34567313]
[1750313666143,0.38176174,104850.0,104840.0,0.34567313]
[1750313666367,0.39129881,104850.0,104840.0,0.34567313]
[1750313667518,0.84606536,104850.0,104840.0,0.20230522]
[1750313667729,0.78977152,104850.0,104840.0,0.002]
[1750313667939,0.81842952,104850.0,104840.0,0.002]
[1750313668419,0.47842952,104850.0,104840.0,0.002]
[1750313668626,0.44832952,104850.0,104840.0,0.002]
[1750313669944,0.41592952,104850.0,104840.0,0.002]
[1750313672257,0.75592952,104850.0,104840.0,0.002]
[1750313673859,0.75592952,104850.0,104840.0,0.01153834]
[1750313674242,0.75592952,104850.0,104840.0,0.21184338]
[1750313674459,0.76546585,104850.0,104840.0,0.25278136]
[1750313674690,0.77500328,104850.0,104840.0,0.29521924]
[1750313675108,0.62024328,104850.0,104840.0,0.29521924]
[1750313675325,0.77500328,104850.0,104840.0,0.30475703]
[1750313675541,0.62024328,104850.0,104840.0,0.30475703]
[1750313675750,0.77500328,104850.0,104840.0,0.30475703]
[1750313676218,0.57471717,104850.0,104840.0,0.30475639]
[1750313676460,0.54605917,104850.0,104840.0,0.30475639]
[1750313676671,0.39129917,104850.0,104840.0,0.30475639]
[1750313677499,0.39129908,104850.0,104840.0,0.30475639]
[1750313678582,0.40083633,104850.0,104840.0,0.30475639]
[1750313678795,0.39129908,104850.0,104840.0,0.30475639]
[1750313679224,0.40083633,104850.0,104840.0,0.30475639]
[1750313679446,0.39129908,104850.0,104840.0,0.30475639]
[1750313680845,0.38176192,104850.0,104840.0,0.30475639]
[1750313681062,0.39129908,104850.0,104840.0,0.30475639]
[1750313681282,0.38176192,104850.0,104840.0,0.30475639]
[1750313681482,0.39129908,104850.0,104840.0,0.30475639]
[1750313681703,0.38176192,104850.0,104840.0,0.30475639]
[1750313682049,0.39129908,104850.0,104840.0,0.30475639]
[1750313682268,0.38176192,104850.0,104840.0,0.30475639]
[1750313682710,0.39129899,104850.0,104840.0,0.30475639]
[1750313683239,0.35907367,104850.0,104840.0,0.30475639]
[1750313683863,0.38180879,104850.0,104840.0,0.30475639]
[1750313684350,0.01907367,104850.0,104840.0,0.30475639]
[1750313684892,0.07220024,104860.0,104850.0,0.28365988]
[1750313685116,0.43676359,104860.0,104850.0,0.28366006]
[1750313685339,0.43676359,104860.0,104850.0,0.27412309]
[1750313685552,0.43676359,104860.0,104850.0,0.28366006]
[1750313685776,0.45950117,104860.0,104850.0,0.28366006]
[1750313686193,0.79950117,104860.0,104850.0,0.28366006]
[1750313686636,0.77776359,104860.0,104850.0,0.28366006]
[1750313687072,0.77876359,104860.0,104850.0,0.28366006]
[1750313687397,0.80150727,104860.0,104850.0,0.28366006]
[1750313687683,0.80150727,104860.0,104850.0,0.29319694]
[1750313688319,0.80150727,104860.0,104850.0,0.28366006]
[1750313688854,0.45601678,104860.0,104850.0,0.29319694]
[1750313689068,0.61073678,104860.0,104850.0,0.29319694]
[1750313689533,0.5879931,104860.0,104850.0,0.29319694]
[1750313690267,0.5879931,104860.0,104850.0,0.30273373]
[1750313690822,0.4046639,104860.0,104850.0,0.30273373]
[1750313691035,0.54979794,104860.0,104850.0,0.30273373]
[1750313692033,0.54026178,104860.0,104850.0,0.30273373]
[1750313692210,0.38554178,104860.0,104850.0,0.30273373]
[1750313692436,0.2121067,104860.0,104850.0,0.30273373]
[1750313692719,0.22164295,104860.0,104850.0,0.30273373]
[1750313693181,0.23117929,104860.0,104850.0,0.30273373]
[1750313693792,0.23118002,104860.0,104850.0,0.30273373]
[1750313694607,0.39823708,104870.0,104850.0,0.30273373]
[1750313694784,0.43629833,104870.0,104850.0,0.30273373]
[1750313695543,0.01907231,104860.0,104850.0,0.30273373]
[1750313696559,0.02860865,104860.0,104850.0,0.30273373]
[1750313696780,0.36860865,104860.0,104850.0,0.30273373]
[1750313696994,0.35907213,104860.0,104850.0,0.30273373]
[1750313697518,0.34953588,104860.0,104850.0,0.30273373]
[1750313697738,0.35907204,104860.0,104850.0,0.30273373]
[1750313698151,0.39019836,104860.0,104850.0,0.30273373]
[1750313698339,0.39119836,104860.0,104850.0,0.30273373]
[1750313699518,0.40073479,104860.0,104850.0,0.30273373]
[1750313700311,0.6010018,104860.0,104850.0,0.26458602]
[1750313700558,0.59146592,104860.0,104850.0,0.20982327]
[1750313700814,0.61421257,104860.0,104850.0,0.20982327]
[1750313701052,0.41394492,104860.0,104850.0,0.3000341]
[1750313701281,0.42348135,104860.0,104850.0,0.3000341]
[1750313701513,0.42348135,104860.0,104850.0,0.29049731]
[1750313701748,0.62374836,104860.0,104850.0,0.2904974]
[1750313701979,0.61421248,104860.0,104850.0,0.2904974]
[1750313702210,0.60467641,104860.0,104850.0,0.27142318]
[1750313702466,0.60467641,104860.0,104850.0,0.28096015]
[1750313703777,0.41394592,104860.0,104850.0,0.29049703]
[1750313704211,0.60467641,104860.0,104850.0,0.29049703]
[1750313705801,0.60467641,104860.0,104850.0,0.20982318]
[1750313706321,0.75939641,104860.0,104850.0,0.21936025]
[1750313707224,0.60467641,104860.0,104850.0,0.21936025]
[1750313707450,0.75939641,104860.0,104850.0,0.21936025]
[1750313707896,0.75939641,104860.0,104850.0,0.22889722]
[1750313708615,0.75939641,104860.0,104850.0,0.29179722]
[1750313708869,0.55912904,104860.0,104850.0,0.30133401]
[1750313709290,0.40440904,104860.0,104850.0,0.30133401]
[1750313710084,0.40440849,104860.0,104850.0,0.30133401]
[1750313710324,0.4044083,104860.0,104850.0,0.30133401]
[1750313710532,0.41394437,104860.0,104850.0,0.30133401]
[1750313710744,0.39487242,104860.0,104850.0,0.30133401]
[1750313711408,0.39487233,104860.0,104850.0,0.30133401]
[1750313711616,0.39387233,104860.0,104850.0,0.30133401]
[1750313712044,0.39387233,104860.0,104850.0,0.30333401]
[1750313712940,0.40340821,104860.0,104850.0,0.30333401]
[1750313713361,0.40340812,104860.0,104850.0,0.30333401]
[1750313713876,0.40340812,104860.0,104850.0,0.34309401]
[1750313714116,0.38433663,104860.0,104850.0,0.34309401]
[1750313714902,0.39387233,104860.0,104850.0,0.34309401]
[1750313715125,0.38433663,104860.0,104850.0,0.34309401]
[1750313716437,0.40340849,104860.0,104850.0,0.30333401]
[1750313716653,0.40340839,104860.0,104850.0,0.34309401]
[1750313717314,0.39387242,104860.0,104850.0,0.34309401]
[1750313717530,0.40340839,104860.0,104850.0,0.34309401]
[1750313718308,0.41294455,104860.0,104850.0,0.34309401]
[1750313718525,0.02860792,104860.0,104850.0,0.33355722]
[1750313718739,0.02860792,104860.0,104850.0,0.34309401]
[1750313719366,0.03814426,104860.0,104850.0,0.34309401]
[1750313719579,0.02860792,104860.0,104850.0,0.34309401]
[1750313720238,0.03814426,104860.0,104850.0,0.34309401]
[1750313720453,0.02860792,104860.0,104850.0,0.34309401]
[1750313720662,0.02860792,104860.0,104850.0,0.30333401]
[1750313721058,0.02860783,104860.0,104850.0,0.30333401]
[1750313722041,0.06684707,104860.0,104850.0,0.30333401]
[1750313722224,0.04777503,104860.0,104850.0,0.30333401]
[1750313722448,0.057311,104860.0,104850.0,0.30333401]
[1750313722651,0.03823924,104860.0,104850.0,0.30333401]
[1750313722866,0.04777494,104860.0,104850.0,0.30333401]
[1750313723079,0.0095357,104860.0,104850.0,0.30333401]
[1750313723291,0.53286144,104870.0,104860.0,0.21933923]
[1750313723923,0.53286144,104870.0,104860.0,0.20980326]
[1750313724131,0.53286144,104870.0,104860.0,0.21933933]
[1750313724539,0.53386144,104870.0,104860.0,0.21933933]
[1750313724869,0.72457375,104870.0,104860.0,0.21933933]
[1750313725066,0.72457375,104870.0,104860.0,0.20980326]
[1750313725318,0.71503869,104870.0,104860.0,0.20980326]
[1750313725519,0.74516761,104870.0,104860.0,0.20980326]
[1750313725926,0.73563218,104870.0,104860.0,0.20980344]
[1750313726198,0.73563218,104870.0,104860.0,0.21933978]
[1750313726394,0.73563218,104870.0,104860.0,0.22887603]
[1750313727005,0.73563218,104870.0,104860.0,0.21933978]
[1750313727831,0.72609657,104870.0,104860.0,0.20026701]
[1750313728041,0.72609657,104870.0,104860.0,0.20980344]
[1750313728522,0.75452988,104870.0,104860.0,0.20980344]
[1750313729832,0.34953597,104860.0,104850.0,0.31248336]
[1750313730081,0.35907185,104860.0,104850.0,0.31248336]
[1750313730309,0.55933905,104860.0,104850.0,0.30294611]
[1750313730526,0.58210433,104860.0,104850.0,0.30294611]
[1750313730997,0.58210433,104860.0,104850.0,0.31248345]
[1750313731234,0.58210433,104860.0,104850.0,0.31348345]
[1750313731883,0.58210433,104860.0,104850.0,0.31228345]
[1750313732536,0.58210433,104860.0,104850.0,0.31328345]
[1750313732747,0.58210433,104860.0,104850.0,0.32282061]
[1750313733612,0.58210433,104860.0,104850.0,0.29259768]
[1750313737313,0.58210433,104860.0,104850.0,0.28306061]
[1750313737535,0.57256836,104860.0,104850.0,0.27352345]
[1750313737756,0.57256836,104860.0,104850.0,0.0649]
[1750313737975,0.5630322,104860.0,104850.0,0.01153743]
[1750313738197,0.5630322,104860.0,104850.0,0.002]
[1750313738419,0.5630322,104860.0,104850.0,0.01153743]
[1750313738639,0.5630322,104860.0,104850.0,0.2213607]
[1750313738860,0.5630322,104860.0,104850.0,0.2824607]
[1750313739307,0.5630322,104860.0,104850.0,0.2213607]
[1750313743304,0.5630322,104860.0,104850.0,0.21182345]
[1750313743787,0.5630322,104860.0,104850.0,0.2213607]
[1750313744252,0.5630322,104860.0,104850.0,0.23089786]
[1750313744481,0.5630322,104860.0,104850.0,0.24043493]
[1750313746588,0.2230322,104860.0,104850.0,0.24043493]
[1750313747655,0.22304638,104860.0,104850.0,0.24043493]
[1750313748316,0.22304638,104860.0,104850.0,0.23089786]
[1750313749234,0.22304638,104860.0,104850.0,0.27053493]
[1750313749465,0.22304638,104860.0,104850.0,0.30353493]
[1750313749755,0.22304638,104860.0,104850.0,0.30353447]
[1750313749980,0.24211906,104860.0,104850.0,0.2939975]
[1750313750183,0.24211906,104860.0,104850.0,0.2308975]
[1750313752187,0.2325829,104860.0,104850.0,0.22136043]
[1750313752397,0.22304647,104860.0,104850.0,0.21182327]
[1750313752622,0.22304647,104860.0,104850.0,0.20228611]
[1750313752843,0.21350995,104860.0,104850.0,0.002]
[1750313753059,0.27660995,104860.0,104850.0,0.002]
[1750313754125,0.27660995,104860.0,104850.0,0.001]
[1750313754544,0.27760995,104860.0,104850.0,0.001]
[1750313754781,0.00953734,104850.0,104840.0,0.63211648]
[1750313755117,0.0190745,104850.0,104840.0,0.62257887]
[1750313755567,0.21936025,104850.0,104840.0,0.55420513]
[1750313755779,0.24213802,104850.0,104840.0,0.49180522]
[1750313755990,0.57260086,104850.0,104840.0,0.49280522]
[1750313756199,0.57260086,104850.0,104840.0,0.2925]
[1750313756429,0.62636352,104850.0,104840.0,0.001]
[1750313756854,0.75094352,104850.0,104840.0,0.01153834]
[1750313757251,0.71774352,104850.0,104840.0,0.01153834]
[1750313759250,0.71774352,104850.0,104840.0,0.21184347]
[1750313759458,0.71774352,104850.0,104840.0,0.22138163]
[1750313760147,0.71774352,104850.0,104840.0,0.2309197]
[1750313760783,0.71774352,104850.0,104840.0,0.22138163]
[1750313767242,0.71774352,104850.0,104840.0,0.20230522]
[1750313769918,0.71774352,104850.0,104840.0,0.21184347]
[1750313773369,0.71774352,104850.0,104840.0,0.20684347]
[1750313774316,0.87938528,104850.0,104840.0,0.001]
[1750313774545,0.90804628,104850.0,104840.0,0.001]
[1750313776576,0.84264628,104850.0,104840.0,0.001]
[1750313776797,0.74640452,104850.0,104840.0,0.001]
[1750313777243,0.73686709,104850.0,104840.0,0.001]
[1750313778525,0.73686709,104850.0,104840.0,0.01053834]
[1750313779431,0.73686709,104850.0,104840.0,0.001]
[1750313780293,0.73682709,104850.0,104840.0,0.001]